bitfinex/quotes_ETHUSD_20241204
["timestamp","ask_amount","ask_price","bid_price","bid_amount"]
[1733279886178,2.7383,3651.9,3651.5,1.6222]
[1733279886540,2.73828,3652.0,3650.8,4.2545]
[1733279886742,2.73828,3652.0,3650.9,0.42545]
[1733279886942,2.73828,3652.0,3651.0,1.5154]
[1733279887143,2.7384,3651.8,3651.0,1.5154]
[1733279887366,2.73806,3652.3,3651.0,1.5154]
[1733279887587,2.738,3652.3,3651.0,1.5154]
[1733279887760,2.73822,3652.1,3651.0,1.940859]
[1733279888087,4.30569,3652.4,3651.0,3.164419]
[1733279888285,2.738,3652.3,3651.2,1.615]
[1733279888500,1.5677,3652.4,3651.4,1.615]
[1733279888652,8.56544724,3652.5,3651.4,2.73864]
[1733279888854,8.56544724,3652.5,3651.5,2.73858]
[1733279889154,4.38041,3652.7,3651.7,1.615]
[1733279889352,1.6427,3652.7,3651.7,1.615]
[1733279889555,4.38042,3652.7,3651.7,1.615]
[1733279889775,4.38042,3652.7,3651.7,1.64238163]
[1733279890786,2.73772,3652.7,3651.7,1.6423814]
[1733279890955,2.73755,3652.9,3651.9,1.5046]
[1733279891159,2.73764,3652.8,3651.9,1.5046]
[1733279891386,2.7377,3652.7,3651.9,1.5046]
[1733279891881,2.73755,3652.9,3651.9,1.5046]
[1733279892080,2.7378,3652.6,3652.0,0.19703548]
[1733279892299,2.73777,3652.7,3651.9,1.5046]
[1733279892614,2.7377,3652.7,3651.9,1.5046]
[1733279893109,2.73795,3652.4,3651.9,1.5046]
[1733279893317,1.663,3653.0,3650.2,3.3]
[1733279893318,2.73822,3652.1,3651.5,1.5792]
[1733279893616,0.0272,3652.1,3651.5,1.5792]
[1733279893798,2.73837,3651.9,3651.5,1.5792]
[1733279894607,2.73837,3651.9,3650.8,1.5016]
[1733279894807,2.73837,3651.9,3650.9,0.424079]
[1733279895009,2.76557,3651.9,3650.9,0.424079]
[1733279895703,2.73837,3651.8,3650.9,0.424079]
[1733279895958,2.73837,3651.8,3651.0,1.5393]
[1733279896212,1.5993,3651.8,3651.0,1.5393]
[1733279896372,2.73882,3651.3,3651.0,1.5393]
[1733279896578,2.73882,3651.3,3650.3,0.274]
[1733279896773,2.76602,3651.3,3650.3,0.274]
[1733279897115,2.76602,3651.3,3650.4,0.45761]
[1733279897319,2.7389,3651.1,3650.4,0.45761]
[1733279897608,2.7661,3651.1,3650.4,0.18361]
[1733279897819,0.0272,3651.1,3650.4,0.18361]
[1733279898976,2.7661,3651.1,3650.4,0.18361]
[1733279899272,2.73928,3650.6,3650.2,1.5621]
[1733279899477,2.73935,3650.5,3649.4,1.5136]
[1733279899718,2.73948,3650.4,3649.4,1.5136]
[1733279899930,2.73976,3650.0,3649.4,1.5136]
[1733279901399,2.7398,3649.9,3649.4,1.5136]
[1733279901787,2.73942,3650.4,3649.4,1.5136]
[1733279902036,2.73966,3650.1,3649.4,1.5136]
[1733279902524,1.674,3650.5,3649.4,1.5136]
[1733279902525,2.73949,3650.4,3649.4,1.5136]
[1733279902687,0.1674,3650.4,3649.4,1.5136]
[1733279902881,2.7395,3650.3,3649.4,1.5136]
[1733279903300,2.73966,3650.1,3649.4,1.5136]
[1733279904325,2.90689,3650.4,3649.4,1.5136]
[1733279904918,0.1674,3650.4,3649.4,1.5136]
[1733279905120,0.1674,3650.4,3649.4,1.93899]
[1733279905741,2.90683,3650.4,3649.4,1.93899]
[1733279906028,2.73953,3650.3,3649.4,1.93899]
[1733279906183,2.7396,3650.2,3649.4,1.5136]
[1733279906615,2.7668,3650.2,3649.4,1.5136]
[1733279906812,0.0272,3650.2,3649.4,1.5136]
[1733279908215,0.0272,3650.2,3649.1,1.5104]
[1733279908216,1.604,3649.9,3649.1,1.5104]
[1733279908416,2.7401,3649.5,3648.4,1.5104]
[1733279908650,2.7673,3649.5,3648.4,1.5104]
[1733279909113,2.74017,3649.4,3648.4,1.5104]
[1733279909516,2.74051,3649.0,3648.4,1.5104]
[1733279909856,0.41807424,3649.0,3648.4,1.5104]
[1733279910027,2.7404,3649.1,3648.4,1.5104]
[1733279910210,2.74048,3649.0,3648.4,1.5104]
[1733279910417,1.6196,3649.3,3648.4,1.5104]
[1733279910720,2.74047,3649.1,3648.4,1.5104]
[1733279911214,2.74049,3649.0,3648.4,1.5104]
[1733279912235,0.16468,3649.2,3648.4,1.5104]
[1733279912429,2.74071,3648.7,3647.6,1.6661]
[1733279912766,2.74071,3648.7,3647.8,1.6628]
[1733279912767,0.0272,3648.7,3647.8,1.6628]
[1733279913063,0.0272,3648.7,3647.9,0.440425]
[1733279913953,0.0272,3648.7,3647.9,3.181695]
[1733279914124,0.0272,3648.7,3647.9,0.440425]
[1733279915112,0.0272,3648.7,3648.0,1.5667]
[1733279916419,2.6677,3649.0,3648.0,2.0415465]
[1733279916816,8.56544724,3649.1,3648.0,1.5667]
[1733279917130,2.90502,3649.2,3646.5,2.84232]
[1733279917131,2.74108,3648.2,3647.7,1.6366]
[1733279917457,1.563,3648.5,3645.9,2.74277]
[1733279917643,2.74168,3647.4,3646.2,1.6366]
[1733279917852,1.563,3647.7,3645.3,0.2]
[1733279917853,1.563,3647.7,3646.3,1.6366]
[1733279918222,1.563,3647.7,3646.5,1.5204]
[1733279918430,2.74167,3647.5,3646.5,1.67244]
[1733279918663,2.76887,3647.5,3646.5,1.67244]
[1733279919327,0.0272,3647.5,3646.5,1.67244]
[1733279919728,2.7688,3647.5,3646.5,1.67244]
[1733279919950,0.0272,3647.5,3646.5,1.67244]
[1733279920281,0.0272,3647.5,3646.6,0.167244]
[1733279920430,0.0272,3647.5,3646.7,2.74219]
[1733279920633,0.0272,3647.5,3646.8,2.74205]
[1733279920876,0.0272,3647.5,3646.7,1.5657]
[1733279921337,0.0272,3647.5,3646.9,1.5164]
[1733279921539,0.0272,3647.5,3647.3,1.5164]
[1733279921722,0.0272,3647.5,3647.4,2.74167]
[1733279922064,0.0272,3647.5,3647.4,4.25607]
[1733279923245,0.0272,3647.5,3647.4,7.25607]
[1733279928342,1.5522,3649.6,3648.4,2.74089]
[1733279928673,1.5522,3649.6,3648.6,2.74075]
[1733279928974,1.5522,3649.6,3648.5,1.5194]
[1733279929286,1.5522,3649.6,3648.6,0.02740413]
[1733279929430,1.5522,3649.6,3648.5,1.5194]
[1733279929626,1.5522,3649.6,3648.8,2.74062]
[1733279929827,1.5614,3649.9,3648.6,0.42877341]
[1733279930073,1.5614,3649.9,3648.9,2.74055]
[1733279930241,1.5614,3649.9,3648.7,2.74069]
[1733279930643,1.5614,3649.9,3648.6,0.42877341]
[1733279930864,1.5614,3649.9,3648.5,1.5194]
[1733279930865,2.73998,3649.7,3648.5,1.5194]
[1733279931467,1.5614,3649.9,3648.5,1.5194]
[1733279931670,1.5614,3649.9,3648.9,2.74053]
[1733279931874,1.5614,3649.9,3648.6,2.74072]
[1733279932032,1.5614,3649.9,3648.7,0.426012]
[1733279932232,1.5614,3649.9,3648.9,2.74054]
[1733279932474,1.5614,3649.9,3648.9,2.74052]
[1733279933270,2.74005,3649.6,3648.6,1.5678]
[1733279933958,1.5837,3649.5,3648.6,1.5678]
[1733279934150,1.5837,3649.5,3648.6,1.998672]
[1733279934774,1.5837,3649.5,3648.6,4.739432]
[1733279934949,1.5837,3649.5,3648.6,4.30856]
[1733279935734,1.5837,3649.5,3648.7,2.74069]
[1733279935939,1.5129,3649.9,3648.6,1.5678]
[1733279936138,1.5129,3649.9,3648.8,2.74062]
[1733279936341,0.47570776,3649.8,3648.6,1.5678]
[1733279936545,1.5129,3649.9,3648.6,1.5678]
[1733279936745,2.73988,3649.8,3648.6,4.30857]
[1733279936940,1.5129,3649.9,3648.6,1.5678]
[1733279937186,1.5129,3649.9,3648.7,0.15678]
[1733279937357,1.5129,3649.9,3649.0,2.74047]
[1733279937696,1.5129,3649.9,3648.8,1.6376]
[1733279937855,1.5129,3649.9,3647.4,2.84166]
[1733279937856,1.5212,3649.7,3648.1,3.0]
[1733279938059,2.74055,3648.9,3648.2,0.574119]
[1733279938243,1.6107,3648.8,3647.3,1.6292]
[1733279938448,1.6107,3648.8,3647.5,2.74158]
[1733279938647,2.7407,3648.7,3647.5,2.74158]
[1733279938852,2.7407,3648.7,3647.6,0.437078]
[1733279939249,1.6107,3648.8,3647.7,3.0]
[1733279940192,4.35134,3648.8,3647.7,3.0]
[1733279940347,2.74079,3648.6,3647.6,0.437078]
[1733279940548,1.6107,3648.8,3647.7,0.3178698]
[1733279940952,1.6107,3648.8,3647.7,3.0593098]
[1733279941188,4.35134,3648.8,3647.7,0.3178698]
[1733279941691,2.74071,3648.7,3647.7,0.3178698]
[1733279942187,2.74071,3648.7,3647.6,3.0]
[1733279942911,2.74092,3648.4,3647.3,4.6292]
[1733279943120,1.6107,3648.8,3647.4,3.0]
[1733279943290,2.7407,3648.7,3647.5,2.74159]
[1733279943787,2.7407,3648.7,3647.4,3.0]
[1733279943788,1.6107,3648.8,3647.4,3.0]
[1733279943991,1.6531,3648.6,3646.7,1.5471]
[1733279944235,1.6531,3647.9,3646.8,2.74212]
[1733279944604,4.39441,3647.9,3646.7,1.5471]
[1733279944925,2.74138,3647.8,3646.7,1.5471]
[1733279945229,1.6531,3647.9,3646.8,0.4456614]
[1733279945431,1.6531,3647.9,3646.8,3.4456614]
[1733279945792,2.74139,3647.8,3646.8,0.4456614]
[1733279946192,2.7415,3647.7,3646.8,0.4456614]
[1733279946425,2.7415,3647.7,3646.7,1.5471]
[1733279947427,1.6531,3647.9,3647.0,2.74197]
[1733279947986,1.6531,3647.9,3646.7,1.5471]
[1733279948231,0.483129,3647.8,3646.7,4.28923]
[1733279949239,0.383129,3647.8,3646.7,4.28926]
[1733279949569,0.383129,3647.8,3646.7,1.5471]
[1733279949730,1.6531,3647.9,3646.7,1.5471]
[1733279949928,1.6531,3647.9,3647.0,2.74196]
[1733279950127,1.6531,3647.9,3647.2,2.74175]
[1733279950365,10.14734724,3648.2,3647.3,1.5799]
[1733279950527,10.14734724,3648.2,3647.3,4.32161]
[1733279950728,10.14734724,3648.2,3647.3,1.5799]
[1733279950943,1.5819,3648.2,3647.5,2.74159]
[1733279951330,0.50468071,3648.6,3647.5,0.432149]
[1733279951529,0.50468071,3648.6,3647.8,2.74136]
[1733279951732,0.50468071,3648.6,3647.3,1.5799]
[1733279951981,0.50468071,3648.6,3647.6,2.74152]
[1733279952160,1.5966,3649.1,3648.3,2.74099]
[1733279952371,1.75626,3649.1,3648.3,2.74099]
[1733279952597,1.5966,3649.1,3648.3,2.74099]
[1733279952887,1.5966,3649.1,3647.8,2.74137]
[1733279953083,1.5576,3649.5,3648.0,1.6307]
[1733279953269,1.5576,3649.5,3648.3,2.74099]
[1733279953472,1.5576,3649.5,3648.7,2.74067]
[1733279953683,0.50454878,3649.8,3649.6,2.74]
[1733279953984,0.50454878,3649.8,3649.6,4.3707]
[1733279954870,0.50454878,3649.8,3649.6,1.6307]
[1733279955068,0.50454878,3649.8,3649.6,4.37071]
[1733279955271,0.50454878,3649.8,3649.6,4.807781]
[1733279956976,0.50454878,3649.8,3649.6,4.770781]
[1733279957488,2.73858,3651.6,3649.6,4.770781]
[1733279957489,0.28605783,3651.8,3651.7,2.73845]
[1733279957707,0.28605783,3651.8,3651.7,5.73845]
[1733279957862,1.5971,3653.1,3651.9,2.73822]
[1733279958199,1.5971,3653.1,3652.0,0.273822]
[1733279958349,1.5971,3653.1,3651.6,0.02737826]
[1733279958552,1.5971,3653.1,3651.8,2.73835]
[1733279958878,1.5971,3653.1,3651.9,2.73827]
[1733279959190,1.5971,3653.1,3652.1,2.73814]
[1733279959885,1.5971,3653.1,3652.0,1.6033]
[1733279960090,1.5971,3653.1,3652.0,4.3415]
[1733279960297,1.5971,3653.1,3651.6,3.0]
[1733279960601,1.5971,3653.1,3651.4,1.5536]
[1733279960751,0.15971,3653.0,3651.5,0.15536]
[1733279960947,0.15971,3653.0,3651.6,3.0]
[1733279961150,0.15971,3653.0,3651.5,0.15536]
[1733279961393,0.15971,3653.0,3651.8,2.73836]
[1733279962192,0.15971,3653.0,3651.5,0.15536]
[1733279962393,10.12904724,3652.8,3651.0,1.5786]
[1733279962899,1.6151,3652.1,3651.0,1.5786]
[1733279964749,2.73833,3651.9,3650.7,3.0]
[1733279964904,1.6151,3652.1,3650.6,1.6441]
[1733279965104,2.73795,3652.4,3649.7,0.6770781]
[1733279965105,1.6318,3651.9,3650.2,2.73952]
[1733279965446,2.73854,3651.6,3650.2,2.73952]
[1733279965648,2.73862,3651.5,3650.1,1.6441]
[1733279965939,2.73837,3651.8,3650.1,1.6441]
[1733279966117,2.73845,3651.7,3650.1,1.6441]
[1733279966317,2.73875,3651.3,3650.1,2.082489]
[1733279966834,2.73875,3651.3,3650.1,5.082489]
[1733279967129,2.73861,3651.5,3650.2,3.0]
[1733279967557,2.73868,3651.4,3650.2,3.0]
[1733279969724,1.6318,3651.9,3650.2,2.73955]
[1733279969944,1.6318,3651.9,3650.1,1.6441]
[1733279969945,1.5389,3652.6,3651.8,2.73834]
[1733279970145,1.5389,3653.1,3651.9,2.76565982]
[1733279970350,1.5389,3653.1,3651.8,0.45394218]
[1733279970574,1.5389,3653.1,3651.8,0.02737818]
[1733279970776,1.5389,3653.1,3651.9,2.73829]
[1733279971339,1.5389,3653.1,3651.6,3.02737822]
[1733279971969,1.5389,3653.1,3651.6,3.0]
[1733279972175,1.5389,3653.1,3651.9,2.73829]
[1733279973061,1.5389,3653.1,3652.0,2.73819]
[1733279973250,1.5389,3653.1,3652.1,0.02737823]
[1733279973448,1.5389,3653.1,3651.8,0.02737822]
[1733279973635,1.6058,3653.5,3652.5,4.37682]
[1733279973974,1.6058,3653.5,3652.7,2.73767]
[1733279974457,1.6058,3653.5,3652.6,0.027375]
[1733279974637,1.6058,3653.5,3652.5,1.639]
[1733279974834,1.6058,3653.5,3652.5,0.483463]
[1733279975047,0.16058,3653.4,3652.5,0.483463]
[1733279975780,2.73734,3653.2,3651.4,3.0]
[1733279975979,0.16058,3653.4,3651.8,2.73834]
[1733279976146,0.16058,3653.4,3651.9,3.0]
[1733279976348,0.16058,3653.4,3652.1,2.73811]
[1733279976574,0.16058,3653.4,3651.6,0.2]
[1733279976745,0.16058,3653.4,3651.6,0.22737316]
[1733279976947,2.73659,3654.2,3651.8,2.93831]
[1733279977146,2.73659,3654.2,3652.8,2.73761]
[1733279977385,2.73667,3654.1,3652.8,2.73761]
[1733279977752,1.6586,3654.3,3651.9,3.0]
[1733279977753,2.73682,3653.9,3652.1,4.5271]
[1733279978081,10.22404724,3654.3,3652.1,4.5271]
[1733279978082,2.73689,3653.8,3652.5,2.73779]
[1733279978287,2.73671,3654.1,3652.6,2.73776]
[1733279978444,3.0,3654.2,3652.6,2.73776]
[1733279978780,2.7368,3653.9,3652.6,2.73776]
[1733279979280,2.73688,3653.8,3652.1,4.26525]
[1733279979481,2.73688,3653.8,3652.2,3.0]
[1733279979781,2.73688,3653.8,3652.6,2.73776]
[1733279980654,2.7367,3654.1,3652.6,2.73776]
[1733279981043,2.73674,3654.0,3652.6,2.73776]
[1733279981239,2.63674,3654.0,3652.8,2.73761]
[1733279981676,1.6586,3654.3,3652.3,3.0]
[1733279981887,1.6586,3654.3,3652.4,1.5463]
[1733279982042,2.73658,3654.2,3652.8,2.73755]
[1733279982985,2.7368,3653.9,3652.6,2.73777]
[1733279983184,2.7368,3653.9,3652.7,2.73769]
[1733279983347,2.73675,3654.0,3652.7,2.73769]
[1733279983947,1.6586,3654.3,3652.7,2.73769]
[1733279984255,2.73675,3654.0,3652.7,3.18182571]
[1733279984457,4.39516,3654.3,3652.7,0.44413571]
[1733279984785,2.73712,3653.5,3652.4,1.5463]
[1733279985380,4.36493,3653.6,3651.9,4.32922]
[1733279985545,2.73732,3653.2,3651.9,4.32922]
[1733279985745,0.273732,3653.1,3651.9,4.762142]
[1733279985947,0.273732,3653.1,3651.9,2.023922]
[1733279986253,2.73755,3652.9,3651.9,1.591]
[1733279986451,1.5149,3653.0,3651.6,1.6208]
[1733279986688,2.73755,3652.9,3650.7,2.7392]
[1733279986999,2.73778,3652.6,3651.4,2.73864]
[1733279987490,2.73778,3652.6,3651.2,2.73882]
[1733279987901,2.73786,3652.5,3651.2,2.73882]
[1733279988096,2.73796,3652.4,3651.2,2.73882]
[1733279988965,2.73803,3652.3,3651.1,3.0]
[1733279989197,1.5253,3652.8,3651.2,4.38686]
[1733279989401,2.73779,3652.6,3651.3,2.73874]
[1733279989694,3.160377,3652.6,3651.4,0.438684]
[1733279990098,2.73785,3652.5,3651.4,0.438684]
[1733279994628,0.422587,3652.6,3651.4,3.177354]
[1733279994786,2.7377,3652.7,3651.4,3.177354]
[1733279995001,1.5253,3652.8,3651.7,1.6587]
[1733279995526,4.26293,3652.8,3651.7,1.6587]
[1733279996124,2.73786,3652.5,3651.7,1.6587]
[1733279996296,2.73794,3652.4,3651.2,3.0]
[1733279996500,2.73794,3652.4,3651.2,3.3]
[1733279996697,2.73794,3652.4,3651.2,0.3]
[1733279996916,2.73794,3652.4,3651.2,3.03881]
[1733280000126,0.15253,3652.7,3651.2,0.3]
[1733280000422,2.73785,3652.5,3651.3,2.94906]
[1733280002252,2.73794,3652.4,3651.3,0.21032]
[1733280002451,2.73825,3652.0,3651.0,1.5292]
[1733280002759,1.5253,3652.8,3651.0,1.5292]
[1733280002911,1.61092762,3652.8,3651.0,4.26817]
[1733280003409,1.61092762,3652.8,3651.1,2.73889]
[1733280003610,1.5253,3652.8,3651.2,0.426809]
[1733280003835,10.09074724,3652.8,3651.2,0.426809]
[1733280004043,10.09074724,3652.8,3651.2,3.165619]
[1733280005659,10.09074724,3652.8,3651.3,2.73874]
[1733280005871,10.09074724,3652.8,3651.4,0.02738288]
[1733280006160,8.56544724,3652.8,3652.0,2.7382]
[1733280006461,10.13254724,3653.6,3652.2,1.6649]
[1733280006765,0.08561219,3653.5,3652.2,1.6649]
[1733280007329,0.08561105,3653.5,3652.2,1.69227741]
[1733280007656,0.08561105,3653.5,3652.3,2.73795]
[1733280007866,1.5671,3653.6,3652.4,4.23911]
[1733280008023,0.15671,3653.5,3652.4,1.5012]
[1733280011344,3.0,3653.8,3652.4,1.5012]
[1733280011556,1.5744,3654.0,3652.4,4.26648429]
[1733280011878,3.0,3653.9,3652.4,1.52857429]
[1733280012167,3.0,3653.8,3652.4,1.52857429]
[1733280012667,2.73681,3653.9,3652.4,1.5012]
[1733280012831,2.73687,3653.8,3652.5,0.42665643]
[1733280013037,2.73698,3653.7,3652.5,0.42665643]
[1733280013336,1.6029,3653.3,3652.4,1.5012]
[1733280013774,1.5029,3653.3,3652.4,1.5012]
[1733280013930,2.73733,3653.2,3652.4,1.5012]
[1733280014133,2.73741,3653.1,3651.9,1.5817]
[1733280014336,2.73741,3653.1,3652.0,0.48557]
[1733280014529,1.5029,3653.3,3652.0,0.48557]
[1733280014530,4.24016,3653.3,3652.0,0.48557]
[1733280014731,1.5029,3653.3,3652.1,0.02737857]
[1733280014946,1.5029,3653.3,3652.2,1.5817]
[1733280015275,4.24018,3653.3,3652.2,1.5817]
[1733280015457,4.24018,3653.3,3652.3,0.16090786]
[1733280015662,2.73867,3651.4,3651.3,0.274]
[1733280015831,2.73875,3651.3,3650.2,1.6135]
[1733280016027,2.73908,3650.9,3650.2,1.6135]
[1733280016308,1.26195657,3650.8,3650.2,1.6135]
[1733280016671,4.00108657,3650.8,3650.2,1.6135]
[1733280016835,4.00108657,3650.8,3648.7,2.74063]
[1733280016836,2.7393,3650.6,3649.2,1.6528]
[1733280017034,1.26195657,3650.5,3649.2,1.6528]
[1733280018277,0.0272,3650.6,3649.4,3.0]
[1733280018435,0.0272,3650.6,3650.3,4.33718]
[1733280018634,0.0272,3650.6,3650.5,4.5977]
[1733280018870,0.0272,3650.6,3650.5,8.14838965]
[1733280019032,8.56544724,3653.1,3651.4,1.6251]
[1733280019233,4.46473947,3653.2,3651.4,1.6251]
[1733280019234,0.24903746,3653.0,3651.6,4.6251]
[1733280019543,0.49809764,3653.4,3651.6,7.36359]
[1733280019752,0.24906018,3653.4,3651.6,7.36359]
[1733280020109,0.24906647,3653.5,3651.7,0.736359]
[1733280020392,2.73733,3653.2,3651.7,0.736359]
[1733280022205,2.73733,3653.2,3651.8,0.5100049]
[1733280023703,8.56544724,3653.6,3651.8,0.5100049]
[1733280023875,0.24906814,3653.5,3651.8,0.5100049]
[1733280024081,2.73768,3652.8,3651.6,1.5613039]
[1733280024585,2.7377,3652.7,3651.6,1.5613039]
[1733280024808,3.0,3653.4,3651.7,0.15613039]
[1733280024973,3.0,3653.4,3651.6,1.5613039]
[1733280024974,8.56544724,3653.2,3651.6,1.5613039]
[1733280025175,2.73755,3652.9,3651.6,1.5613039]
[1733280025485,2.73803,3652.3,3651.6,1.5613039]
[1733280025684,0.273803,3652.2,3651.6,1.5613039]
[1733280025878,2.73803,3652.3,3651.6,1.5613039]
[1733280027410,2.73783,3652.6,3651.6,1.5613039]
[1733280027568,2.73762,3652.8,3651.6,1.5613039]
[1733280027777,2.73802,3652.3,3651.6,1.5613039]
[1733280032677,2.73778,3652.6,3651.6,1.5613039]
[1733280033285,2.73785,3652.5,3651.6,1.5613039]
[1733280033699,2.73793,3652.4,3651.6,1.5613039]
[1733280034014,2.73794,3652.4,3651.6,1.5613039]
[1733280034871,8.56544724,3653.0,3651.6,1.5613039]
[1733280035214,2.73793,3652.4,3651.6,1.5613039]
[1733280035524,2.73801,3652.3,3651.6,1.5613039]
[1733280038218,8.56544724,3653.0,3651.6,1.5613039]
[1733280038792,2.73792,3652.5,3651.6,1.5613039]
[1733280039317,2.73792,3652.4,3651.6,1.5613039]
[1733280039617,3.011712,3652.4,3651.6,1.5613039]
[1733280039793,2.738,3652.3,3651.6,1.5613039]
[1733280040325,0.273792,3652.4,3651.6,1.5613039]
[1733280040529,2.73808,3652.2,3651.6,1.5613039]
[1733280041414,2.73755,3652.9,3651.6,1.5613039]
[1733280041628,2.73875,3651.3,3651.2,1.6212]
[1733280041785,2.73854,3651.6,3651.2,1.6212]
[1733280041984,2.73861,3651.5,3651.2,1.6212]
[1733280042185,2.73867,3651.4,3650.2,1.6284]
[1733280042381,2.73867,3651.4,3650.3,0.436804]
[1733280042815,2.76587,3651.4,3650.2,4.36795]
[1733280043020,0.0272,3651.4,3650.2,1.6284]
[1733280043206,0.0272,3651.4,3650.7,1.6214]
[1733280043381,0.0272,3651.4,3650.8,0.16214]
[1733280044397,0.0272,3651.4,3650.9,1.5953]
[1733280044593,0.0272,3651.4,3651.0,0.02738632]
[1733280044807,0.0272,3651.4,3650.9,1.5953]
[1733280046004,2.6655,3651.9,3650.9,1.5953]
[1733280046352,2.6655,3651.9,3650.9,2.04497]
[1733280046521,2.73815,3652.1,3650.9,2.04497]
[1733280046723,4.371,3652.3,3650.9,1.6226858]
[1733280046927,2.73807,3652.2,3651.0,2.73897]
[1733280047083,2.7382,3652.1,3651.1,0.02738579]
[1733280047284,3.17535,3652.0,3650.9,1.5953]
[1733280047903,0.43712,3652.0,3650.9,1.5953]
[1733280048084,3.17534,3652.0,3650.9,1.5953]
[1733280048586,2.7383,3651.9,3650.9,1.5953]
[1733280048924,2.73838,3651.8,3650.9,1.5953]
[1733280049080,2.73838,3651.8,3650.9,2.04497]
[1733280050935,2.73847,3651.7,3650.9,1.5953]
[1733280052006,0.43712,3652.0,3650.9,1.5953]
[1733280052216,2.7383,3651.9,3650.9,1.5953]
[1733280052408,0.43712,3652.0,3650.9,1.5953]
[1733280052606,1.3489,3651.8,3648.8,0.1]
[1733280052806,1.3489,3651.8,3648.0,2.74118]
[1733280052807,8.56544724,3651.5,3650.2,1.4129]
[1733280053006,2.73919,3650.8,3650.2,1.4129]
[1733280053229,2.73921,3650.7,3650.2,1.4129]
[1733280053599,2.73882,3651.2,3650.2,1.4129]
[1733280053857,2.73912,3650.8,3650.2,1.4129]
[1733280055206,8.56544724,3651.3,3650.2,1.4129]
[1733280055402,0.9324939,3651.2,3650.2,1.4129]
[1733280055618,2.73905,3650.9,3650.2,1.4129]
[1733280056106,2.73921,3650.7,3650.2,1.4129]
[1733280056446,2.73938,3650.5,3649.5,1.3966]
[1733280056735,2.76658,3650.5,3649.5,1.3966]
[1733280057035,2.73969,3650.1,3649.5,1.3966]
[1733280057241,11.33199724,3650.5,3649.5,1.3966]
[1733280057415,2.73965,3650.1,3649.5,1.3966]
[1733280057631,2.73972,3650.0,3649.5,1.3966]
[1733280058172,2.73982,3649.9,3649.0,1.926449]
[1733280058334,0.0272,3649.9,3649.0,1.325]
[1733280058528,2.73997,3649.7,3649.0,1.325]
[1733280060136,1.3095,3649.8,3649.0,1.325]
[1733280060732,0.0272,3649.9,3649.3,2.74023]
[1733280060922,0.0272,3649.9,3649.5,1.3183]
[1733280061122,0.0272,3649.9,3649.8,2.73987]
[1733280061397,0.0272,3649.9,3649.8,4.09247]
[1733280063468,0.0272,3649.9,3649.8,1.3526]
[1733280064601,0.0272,3649.9,3647.8,0.1]
[1733280064602,0.0272,3649.9,3649.4,1.4278]
[1733280064864,0.0272,3649.9,3649.6,2.74002]
[1733280065075,0.0272,3649.9,3649.8,4.11997]
[1733280065277,0.0272,3649.9,3649.8,7.11997]
[1733280065977,1.4048,3651.7,3650.0,1.3294]
[1733280066191,0.14048,3651.6,3650.5,1.3294]
[1733280066472,1.3443,3652.3,3651.2,1.3294]
[1733280066684,1.3443,3652.3,3650.4,4.06881]
[1733280066685,8.56544724,3652.2,3650.4,4.06881]
[1733280066841,1.3443,3652.1,3650.4,4.06881]
[1733280067190,2.73847,3651.7,3650.4,1.3294]
[1733280067542,1.3443,3651.8,3650.4,1.3294]
[1733280067967,0.408261,3651.7,3650.4,1.3294]
[1733280068487,0.408261,3651.7,3650.4,1.35679149]
[1733280068644,1.3443,3651.8,3650.8,2.73912]
[1733280068845,1.3443,3651.8,3650.9,2.73904]
[1733280069974,1.3443,3651.8,3650.4,1.3294]
[1733280070655,1.3443,3651.8,3650.8,2.73912]
[1733280070852,1.3443,3651.8,3650.8,2.73908]
[1733280071068,1.3443,3651.8,3650.4,4.06882]
[1733280071279,1.3443,3651.8,3650.5,0.406882]
[1733280071706,1.3443,3651.8,3650.4,4.06875]
[1733280071983,1.3443,3651.8,3650.5,0.02739076]
[1733280072137,1.3443,3651.8,3650.4,1.3294]
[1733280072344,1.3862,3652.1,3651.0,4.06585]
[1733280072739,1.3862,3652.1,3651.2,2.7388]
[1733280073144,1.3862,3652.1,3651.3,2.7387]
[1733280073344,1.3862,3652.1,3651.0,1.3269]
[1733280073583,1.3862,3652.1,3651.1,2.73888]
[1733280073778,1.3862,3652.1,3651.1,2.7389]
[1733280074086,1.3862,3652.1,3651.0,1.3269]
[1733280074240,1.3862,3652.1,3651.4,2.73866]
[1733280075380,0.28608378,3652.5,3651.1,0.02738621]
[1733280075586,0.28608378,3652.5,3651.3,1.3439]
[1733280075749,1.3747,3652.6,3651.3,1.3439]
[1733280075948,4.11247,3652.6,3651.3,1.3439]
[1733280076147,1.3747,3652.4,3650.9,1.3439]
[1733280076453,1.3747,3651.7,3650.6,1.3439]
[1733280076603,2.73868,3651.4,3650.2,1.2899]
[1733280076768,1.3759,3651.6,3650.3,0.02739252]
[1733280076970,1.3759,3651.6,3650.4,2.7394]
[1733280077173,0.13759,3651.5,3650.4,2.7394]
[1733280077376,0.13759,3651.5,3650.2,1.2899]
[1733280077572,0.13759,3651.5,3650.4,2.73941]
[1733280077785,0.13759,3651.5,3650.5,2.7393]
[1733280078502,0.13759,3651.5,3650.2,1.2899]
[1733280078703,0.151349,3651.4,3650.2,1.2899]
[1733280080083,0.151349,3651.4,3650.5,2.73933]
[1733280080284,0.13759,3651.5,3650.5,2.73933]
[1733280080808,0.13759,3651.5,3650.2,1.2899]
[1733280081175,2.73882,3651.2,3649.7,1.4212]
[1733280081377,1.3675,3651.1,3649.8,2.73987]
[1733280081910,1.3675,3651.1,3649.7,1.4212]